[Event "Early-Titled-Tuesday-Blitz-March-26-2024"]
[Site "Chess.com"]
[Date "2024.03.26"]
[Round "5"]
[White "ahmedkandiliii"]
[Black "twitchTriniCupid"]
[Result "0-1"]
[WhiteElo "2510"]
[BlackElo "2352"]
[TimeControl "180+1"]
[EndTime "8:55:53 PDT"]
[Termination "twitchTriniCupid won by checkmate"]

1. e4 {[%clk 0:02:59.5]} 1... c6 {[%clk 0:03:00.4]} 2. d4 {[%clk 0:02:58.8]}
2... d5 {[%clk 0:03:01.3]} 3. exd5 {[%clk 0:02:59.2]} 3... cxd5 {[%clk
0:03:01.6]} 4. c4 {[%clk 0:02:59.8]} 4... Nf6 {[%clk 0:03:01.9]} 5. Nc3 {[%clk
0:03:00.1]} 5... Nc6 {[%clk 0:03:02.3]} 6. Bg5 {[%clk 0:02:59.7]} 6... e6 {[%clk
0:02:52.5]} 7. cxd5 {[%clk 0:02:58.7]} 7... exd5 {[%clk 0:02:52.2]} 8. Bxf6
{[%clk 0:02:58.1]} 8... Qxf6 {[%clk 0:02:34.9]} 9. Nxd5 {[%clk 0:02:54.6]} 9...
Qd6 {[%clk 0:02:34.9]} 10. Qe2+ {[%clk 0:02:46.4]} 10... Be6 {[%clk 0:02:34.6]}
11. Nc3 {[%clk 0:02:41.7]} 11... Qxd4 {[%clk 0:02:29.2]} 12. Nf3 {[%clk
0:02:38.6]} 12... Qb4 {[%clk 0:02:27.8]} 13. Qb5 {[%clk 0:02:33.9]} 13... O-O-O
{[%clk 0:02:23.9]} 14. Be2 {[%clk 0:02:30.1]} 14... a6 {[%clk 0:02:19.3]} 15.
Qxb4 {[%clk 0:02:29.4]} 15... Bxb4 {[%clk 0:02:17.4]} 16. O-O {[%clk 0:02:30]}
16... Nd4 {[%clk 0:02:16]} 17. Nxd4 {[%clk 0:02:27.6]} 17... Rxd4 {[%clk
0:02:16.9]} 18. Rac1 {[%clk 0:02:26.8]} 18... Kb8 {[%clk 0:02:08]} 19. a3 {[%clk
0:02:22.1]} 19... Be7 {[%clk 0:02:04.7]} 20. Bf3 {[%clk 0:02:20.6]} 20... Rc8
{[%clk 0:01:53]} 21. Rfd1 {[%clk 0:02:08.7]} 21... Rcd8 {[%clk 0:01:46]} 22.
Rxd4 {[%clk 0:02:02.8]} 22... Rxd4 {[%clk 0:01:46]} 23. b4 {[%clk 0:02:02.7]}
23... Rc4 {[%clk 0:01:44.6]} 24. Ne2 {[%clk 0:01:48.9]} 24... Bf6 {[%clk
0:01:36]} 25. Rxc4 {[%clk 0:01:33.8]} 25... Bxc4 {[%clk 0:01:35.9]} 26. Nf4
{[%clk 0:01:32.3]} 26... Bb2 {[%clk 0:01:34.5]} 27. a4 {[%clk 0:01:31.1]} 27...
g5 {[%clk 0:01:18.9]} 28. Bd5 {[%clk 0:01:28.8]} 28... Bxd5 {[%clk 0:01:14.7]}
29. Nxd5 {[%clk 0:01:29.1]} 29... Kc8 {[%clk 0:01:08.9]} 30. Kf1 {[%clk
0:01:29.1]} 30... Kd7 {[%clk 0:01:08.5]} 31. Nf6+ {[%clk 0:01:29]} 31... Ke6
{[%clk 0:01:07.2]} 32. Ne4 {[%clk 0:01:21.7]} 32... f6 {[%clk 0:00:48.7]} 33.
Nc5+ {[%clk 0:01:20.9]} 33... Kd5 {[%clk 0:00:49.2]} 34. Nxb7 {[%clk 0:01:21.4]}
34... Kc4 {[%clk 0:00:48.6]} 35. b5 {[%clk 0:01:12.9]} 35... axb5 {[%clk
0:00:48.4]} 36. Nd6+ {[%clk 0:01:12.7]} 36... Kb4 {[%clk 0:00:47.6]} 37. axb5
{[%clk 0:01:07]} 37... Kc5 {[%clk 0:00:42.8]} 38. Ne4+ {[%clk 0:00:58.3]} 38...
Kxb5 {[%clk 0:00:43]} 39. Ke2 {[%clk 0:00:58.9]} 39... Kc4 {[%clk 0:00:42.1]}
40. Ke3 {[%clk 0:00:57.2]} 40... Kd5 {[%clk 0:00:42.3]} 41. f3 {[%clk
0:00:52.8]} 41... h6 {[%clk 0:00:39.6]} 42. Nf2 {[%clk 0:00:46.2]} 42... Bd4+
{[%clk 0:00:35.7]} 43. Ke2 {[%clk 0:00:45.7]} 43... Bxf2 {[%clk 0:00:34.9]} 44.
Kxf2 {[%clk 0:00:46.6]} 44... f5 {[%clk 0:00:33]} 45. Ke3 {[%clk 0:00:45.5]}
45... Ke5 {[%clk 0:00:23.1]} 46. g3 {[%clk 0:00:41.2]} 46... Kd5 {[%clk
0:00:16.1]} 47. g4 {[%clk 0:00:36]} 47... Ke5 {[%clk 0:00:14.2]} 48. h3 {[%clk
0:00:33.3]} 48... f4+ {[%clk 0:00:09.5]} 49. Kd3 {[%clk 0:00:30.1]} 49... Kd5
{[%clk 0:00:10]} 50. Kc3 {[%clk 0:00:30.3]} 50... Kc5 {[%clk 0:00:10.1]} 51. Kd3
{[%clk 0:00:26.9]} 51... Kd5 {[%clk 0:00:10.5]} 52. Ke2 {[%clk 0:00:25.5]} 52...
Kc4 {[%clk 0:00:09.1]} 53. Kd2 {[%clk 0:00:07.9]} 53... Kd4 {[%clk 0:00:08.4]}
54. Ke2 {[%clk 0:00:08.4]} 54... Kc3 {[%clk 0:00:08.9]} 55. Kf2 {[%clk
0:00:09.2]} 55... Kd3 {[%clk 0:00:09.1]} 56. Kf1 {[%clk 0:00:08.7]} 56... Ke3
{[%clk 0:00:09]} 57. Kg2 {[%clk 0:00:09.6]} 57... Ke2 {[%clk 0:00:09.5]} 58. h4
{[%clk 0:00:10]} 58... Ke3 {[%clk 0:00:09.7]} 59. Kh3 {[%clk 0:00:10.7]} 59...
Kxf3 {[%clk 0:00:09.6]} 60. h5 {[%clk 0:00:09.5]} 60... Ke2 {[%clk 0:00:08.5]}
61. Kh2 {[%clk 0:00:10.1]} 61... f3 {[%clk 0:00:08.7]} 62. Kg3 {[%clk 0:00:11]}
62... f2 {[%clk 0:00:09]} 63. Kh2 {[%clk 0:00:11.8]} 63... Ke1 {[%clk
0:00:08.2]} 64. Kg3 {[%clk 0:00:12.7]} 64... f1=Q {[%clk 0:00:07.8]} 65. Kh2
{[%clk 0:00:13.1]} 65... Qf4+ {[%clk 0:00:07.8]} 66. Kh3 {[%clk 0:00:13.2]}
66... Qf3+ {[%clk 0:00:07.1]} 67. Kh2 {[%clk 0:00:13.4]} 67... Qxg4 {[%clk
0:00:05.3]} 68. Kh1 {[%clk 0:00:14.3]} 68... Qxh5+ {[%clk 0:00:04.5]} 69. Kg2
{[%clk 0:00:14.2]} 69... Qg4+ {[%clk 0:00:05]} 70. Kh2 {[%clk 0:00:14.8]} 70...
Qh4+ {[%clk 0:00:05.2]} 71. Kg2 {[%clk 0:00:14.6]} 71... Kd1 {[%clk 0:00:05.7]}
72. Kf3 {[%clk 0:00:14.8]} 72... g4+ {[%clk 0:00:06]} 73. Kg2 {[%clk 0:00:15.6]}
73... Qh3+ {[%clk 0:00:06.2]} 74. Kg1 {[%clk 0:00:16.3]} 74... Qg3+ {[%clk
0:00:05.5]} 75. Kh1 {[%clk 0:00:15.9]} 75... Qf4 {[%clk 0:00:05]} 76. Kg2 {[%clk
0:00:16]} 76... h5 {[%clk 0:00:05.4]} 77. Kg1 {[%clk 0:00:16.2]} 77... h4 {[%clk
0:00:05.7]} 78. Kh1 {[%clk 0:00:16.8]} 78... h3 {[%clk 0:00:05.3]} 79. Kg1
{[%clk 0:00:17.3]} 79... Qe3+ {[%clk 0:00:05.3]} 80. Kh2 {[%clk 0:00:17.5]}
80... Qf2+ {[%clk 0:00:05]} 81. Kh1 {[%clk 0:00:17.6]} 81... Qg2# {[%clk
0:00:05.9]} 0-1

[Event "Early-Titled-Tuesday-Blitz-March-26-2024"]
[Site "Chess.com"]
[Date "2024.03.26"]
[Round "5"]
[White "Chessmissile07"]
[Black "MatyChess1"]
[Result "1-0"]
[WhiteElo "2921"]
[BlackElo "2643"]
[TimeControl "180+1"]
[EndTime "8:56:11 PDT"]
[Termination "Chessmissile07 won by resignation"]

1. a3 {[%clk 0:02:49.4]} 1... d5 {[%clk 0:02:57.9]} 2. d4 {[%clk 0:02:48.9]}
2... Bf5 {[%clk 0:02:57.1]} 3. Nf3 {[%clk 0:02:47.4]} 3... e6 {[%clk 0:02:57.2]}
4. e3 {[%clk 0:02:46.7]} 4... Nf6 {[%clk 0:02:56]} 5. Bd3 {[%clk 0:02:47.2]}
5... Nbd7 {[%clk 0:02:52.8]} 6. O-O {[%clk 0:02:46.1]} 6... Bd6 {[%clk
0:02:49.8]} 7. c4 {[%clk 0:02:46]} 7... c6 {[%clk 0:02:46.2]} 8. Nc3 {[%clk
0:02:45.9]} 8... Bg6 {[%clk 0:02:44.3]} 9. Qe2 {[%clk 0:02:44.2]} 9... Ne4
{[%clk 0:02:41.9]} 10. Nd2 {[%clk 0:02:36.4]} 10... Nxd2 {[%clk 0:02:11.4]} 11.
Bxd2 {[%clk 0:02:35.2]} 11... Bxd3 {[%clk 0:02:10.7]} 12. Qxd3 {[%clk 0:02:34]}
12... dxc4 {[%clk 0:02:08.1]} 13. Qxc4 {[%clk 0:02:34.1]} 13... Bxh2+ {[%clk
0:02:07.9]} 14. Kxh2 {[%clk 0:02:17.3]} 14... Qh4+ {[%clk 0:02:08.1]} 15. Kg1
{[%clk 0:02:17.1]} 15... Ne5 {[%clk 0:02:08.6]} 16. g3 {[%clk 0:01:36.1]} 16...
Nxc4 {[%clk 0:02:00.8]} 17. gxh4 {[%clk 0:01:37]} 17... Nxd2 {[%clk 0:02:01.4]}
18. Rfd1 {[%clk 0:01:37.9]} 18... Nf3+ {[%clk 0:02:01.2]} 19. Kf1 {[%clk
0:01:38.5]} 19... Nxh4 {[%clk 0:02:01.6]} 20. b4 {[%clk 0:01:36.5]} 20... a6
{[%clk 0:01:57.1]} 21. a4 {[%clk 0:01:34.9]} 21... Ke7 {[%clk 0:01:49.8]} 22.
Ke2 {[%clk 0:01:35.1]} 22... Nf5 {[%clk 0:01:48.9]} 23. a5 {[%clk 0:01:33.2]}
23... h5 {[%clk 0:01:45.9]} 24. Ne4 {[%clk 0:01:32.7]} 24... h4 {[%clk
0:01:40.8]} 25. Nc5 {[%clk 0:01:32.6]} 25... Nd6 {[%clk 0:01:38.2]} 26. Rg1
{[%clk 0:01:28.7]} 26... g6 {[%clk 0:01:36]} 27. Rg4 {[%clk 0:01:27.7]} 27...
Rh5 {[%clk 0:01:22.8]} 28. Rh1 {[%clk 0:01:27.2]} 28... Rah8 {[%clk 0:01:22.1]}
29. f4 {[%clk 0:01:26.4]} 29... Kd8 {[%clk 0:01:09.8]} 30. Kf3 {[%clk
0:01:24.4]} 30... Kc7 {[%clk 0:01:09.4]} 31. Rh3 {[%clk 0:01:21.6]} 31... Nf5
{[%clk 0:01:06.4]} 32. Nb3 {[%clk 0:01:11.5]} 32... Ne7 {[%clk 0:01:02.3]} 33.
Nc5 {[%clk 0:01:10]} 33... Nf5 {[%clk 0:00:47.9]} 34. Nb3 {[%clk 0:01:05.5]}
34... Rd8 {[%clk 0:00:43.9]} 35. Nc5 {[%clk 0:00:58]} 35... Rg8 {[%clk
0:00:15.6]} 36. Ne4 {[%clk 0:00:56.5]} 36... Rgh8 {[%clk 0:00:15.2]} 37. Nf6
{[%clk 0:00:48.2]} 37... R5h6 {[%clk 0:00:15.1]} 38. Ne4 {[%clk 0:00:48.7]}
38... Nd6 {[%clk 0:00:14.3]} 39. Nc5 {[%clk 0:00:48.8]} 39... Nf5 {[%clk
0:00:13.2]} 40. Nd3 {[%clk 0:00:44.6]} 40... Nd6 {[%clk 0:00:11.5]} 41. Nc5
{[%clk 0:00:44.5]} 41... Rh5 {[%clk 0:00:11.3]} 42. Nd3 {[%clk 0:00:40.4]} 42...
Nf5 {[%clk 0:00:11.8]} 43. Ne5 {[%clk 0:00:39.6]} 43... R8h7 {[%clk 0:00:10.9]}
44. Nd3 {[%clk 0:00:38.4]} 44... Ne7 {[%clk 0:00:11.4]} 45. Nc5 {[%clk
0:00:38.5]} 45... Nd5 {[%clk 0:00:11.6]} 46. Nd3 {[%clk 0:00:39]} 46... Rh8
{[%clk 0:00:12.1]} 47. e4 {[%clk 0:00:36.6]} 47... Nc3 {[%clk 0:00:08.8]} 48.
Ne5 {[%clk 0:00:35]} 48... R5h7 {[%clk 0:00:08]} 49. Rg2 {[%clk 0:00:34.7]}
49... Nb5 {[%clk 0:00:08.1]} 50. Ke3 {[%clk 0:00:34.8]} 50... Rd8 {[%clk
0:00:08.4]} 51. Nf3 {[%clk 0:00:34.7]} 51... Rdh8 {[%clk 0:00:07.2]} 52. Ng5
{[%clk 0:00:30.2]} 52... Rg7 {[%clk 0:00:06.2]} 53. Rgh2 {[%clk 0:00:30.5]}
53... Rd8 {[%clk 0:00:04.6]} 54. Nf3 {[%clk 0:00:30.2]} 54... Nd6 {[%clk
0:00:02.8]} 55. Rxh4 {[%clk 0:00:27.6]} 55... Nc4+ {[%clk 0:00:03]} 56. Kd3
{[%clk 0:00:27.9]} 56... Nd6 {[%clk 0:00:03.7]} 57. Rh7 {[%clk 0:00:25.8]} 57...
Rxh7 {[%clk 0:00:03]} 58. Rxh7 {[%clk 0:00:26.7]} 58... Rd7 {[%clk 0:00:02.8]}
59. Ne5 {[%clk 0:00:25.6]} 59... Re7 {[%clk 0:00:03.3]} 60. Nxg6 {[%clk
0:00:25.9]} 60... Re8 {[%clk 0:00:02.3]} 61. Ne5 {[%clk 0:00:24.3]} 61... Rf8
{[%clk 0:00:02.4]} 62. Nf3 {[%clk 0:00:23.8]} 62... Kd8 {[%clk 0:00:03]} 63. Ne5
{[%clk 0:00:21.2]} 63... Ke8 {[%clk 0:00:02.7]} 64. Ng4 {[%clk 0:00:20]} 64...
Ke7 {[%clk 0:00:02.4]} 65. Nh6 {[%clk 0:00:13.2]} 65... Re8 {[%clk 0:00:01.7]}
66. e5 {[%clk 0:00:10.7]} 66... Nb5 {[%clk 0:00:02.1]} 67. Rxf7+ {[%clk
0:00:10.5]} 67... Kd8 {[%clk 0:00:02.6]} 68. Rxb7 {[%clk 0:00:10.3]} 68... Rf8
{[%clk 0:00:02.5]} 69. Rf7 {[%clk 0:00:09.9]} 69... Rh8 {[%clk 0:00:02.4]} 70.
Rf6 {[%clk 0:00:07.1]} 70... Ke7 {[%clk 0:00:03.1]} 71. f5 {[%clk 0:00:07.4]}
71... exf5 {[%clk 0:00:02.9]} 72. Nxf5+ {[%clk 0:00:08.3]} 72... Kd7 {[%clk
0:00:03]} 73. e6+ {[%clk 0:00:08.6]} 73... Kc7 {[%clk 0:00:02.8]} 74. e7 {[%clk
0:00:09]} 74... Re8 {[%clk 0:00:03.2]} 75. Rf8 {[%clk 0:00:08.6]} 75... Kd7
{[%clk 0:00:03.8]} 76. Rxe8 {[%clk 0:00:09]} 76... Kxe8 {[%clk 0:00:04.7]} 77.
Kc4 {[%clk 0:00:09.5]} 77... Kd7 {[%clk 0:00:03.9]} 78. Kc5 {[%clk 0:00:10.1]}
78... Nc7 {[%clk 0:00:02.3]} 79. Kb6 {[%clk 0:00:05]} 79... Nd5+ {[%clk
0:00:02.2]} 80. Kxa6 {[%clk 0:00:05.5]} 80... Nxb4+ {[%clk 0:00:02.8]} 81. Kb7
{[%clk 0:00:05.8]} 81... Nd3 {[%clk 0:00:01.8]} 82. a6 {[%clk 0:00:06]} 82... c5
{[%clk 0:00:02.7]} 83. a7 {[%clk 0:00:05.9]} 1-0

[Event "Early-Titled-Tuesday-Blitz-March-26-2024"]
[Site "Chess.com"]
[Date "2024.03.26"]
[Round "5"]
[White "biveklama"]
[Black "klimkoj"]
[Result "1/2-1/2"]
[WhiteElo "2581"]
[BlackElo "2818"]
[TimeControl "180+1"]
[EndTime "8:56:19 PDT"]
[Termination "Game drawn - insufficient material"]

1. e4 {[%clk 0:03:00.9]} 1... e5 {[%clk 0:02:56.8]} 2. Nf3 {[%clk 0:03:00.4]}
2... Nc6 {[%clk 0:02:55.9]} 3. Bc4 {[%clk 0:03:00.4]} 3... Nf6 {[%clk
0:02:55.7]} 4. d3 {[%clk 0:03:00.4]} 4... Bc5 {[%clk 0:02:55.2]} 5. c3 {[%clk
0:02:58.2]} 5... d6 {[%clk 0:02:51.9]} 6. O-O {[%clk 0:02:54.4]} 6... a6 {[%clk
0:02:44.2]} 7. Bb3 {[%clk 0:02:53.9]} 7... h6 {[%clk 0:02:39.2]} 8. Re1 {[%clk
0:02:48.2]} 8... O-O {[%clk 0:02:17.6]} 9. h3 {[%clk 0:02:42.2]} 9... Re8 {[%clk
0:02:14.2]} 10. Nbd2 {[%clk 0:02:41.1]} 10... Be6 {[%clk 0:02:11.7]} 11. Bc2
{[%clk 0:02:19.5]} 11... d5 {[%clk 0:02:05.2]} 12. exd5 {[%clk 0:02:12]} 12...
Nxd5 {[%clk 0:02:06.1]} 13. Ne4 {[%clk 0:02:04.2]} 13... Be7 {[%clk 0:02:05.1]}
14. Ng3 {[%clk 0:02:02.8]} 14... Bd6 {[%clk 0:01:53.9]} 15. d4 {[%clk
0:01:32.3]} 15... exd4 {[%clk 0:01:52.7]} 16. Nxd4 {[%clk 0:01:32.3]} 16... Nxd4
{[%clk 0:01:48.7]} 17. Qxd4 {[%clk 0:01:32.3]} 17... Nf6 {[%clk 0:01:17.3]} 18.
Bf4 {[%clk 0:01:04]} 18... Bxf4 {[%clk 0:01:11.4]} 19. Qxf4 {[%clk 0:01:04.9]}
19... Qd6 {[%clk 0:01:10.5]} 20. Qxd6 {[%clk 0:01:04.4]} 20... cxd6 {[%clk
0:01:11.4]} 21. Red1 {[%clk 0:00:56.6]} 21... Rad8 {[%clk 0:01:09.1]} 22. Rd4
{[%clk 0:00:54.3]} 22... d5 {[%clk 0:01:03.2]} 23. a4 {[%clk 0:00:50.5]} 23...
Nd7 {[%clk 0:01:01.3]} 24. Nf1 {[%clk 0:00:40.6]} 24... Ne5 {[%clk 0:00:56.2]}
25. Rad1 {[%clk 0:00:34.3]} 25... Rc8 {[%clk 0:00:46.2]} 26. Ne3 {[%clk
0:00:33.4]} 26... Nc4 {[%clk 0:00:46.4]} 27. Nxc4 {[%clk 0:00:19.7]} 27... dxc4
{[%clk 0:00:46.9]} 28. Be4 {[%clk 0:00:16.3]} 28... Rc7 {[%clk 0:00:47.5]} 29.
Bf3 {[%clk 0:00:13.9]} 29... Kf8 {[%clk 0:00:40.3]} 30. g4 {[%clk 0:00:12.7]}
30... Ke7 {[%clk 0:00:36]} 31. Kg2 {[%clk 0:00:13.1]} 31... b5 {[%clk
0:00:34.2]} 32. a5 {[%clk 0:00:12.6]} 32... Rb8 {[%clk 0:00:33.2]} 33. Rd6
{[%clk 0:00:12]} 33... Bc8 {[%clk 0:00:25.7]} 34. Rb6 {[%clk 0:00:10.2]} 34...
Bb7 {[%clk 0:00:14.4]} 35. Bxb7 {[%clk 0:00:09.2]} 35... Rbxb7 {[%clk
0:00:12.1]} 36. Rdd6 {[%clk 0:00:05]} 36... Rxb6 {[%clk 0:00:11.7]} 37. Rxb6
{[%clk 0:00:05.9]} 37... Ra7 {[%clk 0:00:11.6]} 38. Kf3 {[%clk 0:00:05.9]} 38...
Rd7 {[%clk 0:00:10]} 39. Rxa6 {[%clk 0:00:05.5]} 39... Rd2 {[%clk 0:00:10.3]}
40. Rb6 {[%clk 0:00:04.5]} 40... Rxb2 {[%clk 0:00:10.9]} 41. a6 {[%clk 0:00:05]}
41... Kd7 {[%clk 0:00:10.8]} 42. a7 {[%clk 0:00:03.6]} 42... Ra2 {[%clk
0:00:11.1]} 43. Rxb5 {[%clk 0:00:02.8]} 43... Rxa7 {[%clk 0:00:11]} 44. Rc5
{[%clk 0:00:03.3]} 44... Ra4 {[%clk 0:00:11.4]} 45. Ke4 {[%clk 0:00:04]} 45...
Kd6 {[%clk 0:00:11.6]} 46. Kd4 {[%clk 0:00:04.3]} 46... Ra2 {[%clk 0:00:11.5]}
47. Rf5 {[%clk 0:00:05]} 47... Ke6 {[%clk 0:00:10.4]} 48. Kxc4 {[%clk
0:00:05.4]} 48... g6 {[%clk 0:00:10.7]} 49. Rf3 {[%clk 0:00:04.7]} 49... f5
{[%clk 0:00:11.3]} 50. gxf5+ {[%clk 0:00:04.5]} 50... gxf5 {[%clk 0:00:12.2]}
51. Kd4 {[%clk 0:00:05]} 51... Rd2+ {[%clk 0:00:12.1]} 52. Ke3 {[%clk
0:00:05.2]} 52... Rd1 {[%clk 0:00:10.5]} 53. Ke2 {[%clk 0:00:05.3]} 53... Rh1
{[%clk 0:00:10.2]} 54. c4 {[%clk 0:00:05]} 54... Rc1 {[%clk 0:00:08.3]} 55. Kd3
{[%clk 0:00:04.1]} 55... Ke5 {[%clk 0:00:08.9]} 56. Re3+ {[%clk 0:00:03.8]}
56... Kf4 {[%clk 0:00:08.4]} 57. Re6 {[%clk 0:00:03.5]} 57... h5 {[%clk
0:00:08.3]} 58. Rh6 {[%clk 0:00:02.1]} 58... Kg5 {[%clk 0:00:07.4]} 59. Rh8
{[%clk 0:00:02.4]} 59... Rh1 {[%clk 0:00:07.8]} 60. Rg8+ {[%clk 0:00:02.2]}
60... Kf4 {[%clk 0:00:06.3]} 61. c5 {[%clk 0:00:02.8]} 61... Rxh3+ {[%clk
0:00:05.9]} 62. Kd4 {[%clk 0:00:03.5]} 62... Rh1 {[%clk 0:00:05.9]} 63. Rg3
{[%clk 0:00:02.7]} 63... Rd1+ {[%clk 0:00:06.8]} 64. Rd3 {[%clk 0:00:02.2]}
64... Rc1 {[%clk 0:00:04]} 65. Rc3 {[%clk 0:00:02.6]} 65... Rxc3 {[%clk
0:00:04.2]} 66. Kxc3 {[%clk 0:00:03.5]} 66... h4 {[%clk 0:00:05.1]} 67. c6
{[%clk 0:00:03.4]} 67... h3 {[%clk 0:00:06]} 68. c7 {[%clk 0:00:04.1]} 68... h2
{[%clk 0:00:06.9]} 69. c8=Q {[%clk 0:00:04.9]} 69... h1=Q {[%clk 0:00:07.8]} 70.
Qc7+ {[%clk 0:00:04.9]} 70... Kg5 {[%clk 0:00:07.2]} 71. Qg7+ {[%clk 0:00:05.6]}
71... Kf4 {[%clk 0:00:06.6]} 72. Qd4+ {[%clk 0:00:06.1]} 72... Kg5 {[%clk
0:00:06.2]} 73. Qg7+ {[%clk 0:00:06.2]} 73... Kf4 {[%clk 0:00:06.8]} 74. Qg3+
{[%clk 0:00:06.4]} 74... Ke4 {[%clk 0:00:06.6]} 75. Qd3+ {[%clk 0:00:06.3]}
75... Ke5 {[%clk 0:00:06.8]} 76. Qd4+ {[%clk 0:00:06.8]} 76... Ke6 {[%clk
0:00:07.3]} 77. Kd3 {[%clk 0:00:07.4]} 77... Qd1+ {[%clk 0:00:06.9]} 78. Ke3
{[%clk 0:00:08.1]} 78... Qe1+ {[%clk 0:00:06.6]} 79. Kf4 {[%clk 0:00:08]} 79...
Qc1+ {[%clk 0:00:04.7]} 80. Qe3+ {[%clk 0:00:07.5]} 80... Qxe3+ {[%clk
0:00:04.9]} 81. fxe3 {[%clk 0:00:08.2]} 81... Kf6 {[%clk 0:00:04.4]} 82. e4
{[%clk 0:00:08.4]} 82... fxe4 {[%clk 0:00:05.3]} 83. Kxe4 {[%clk 0:00:08.8]}
1/2-1/2